fUST/lending_fUST_20260403
["ID","MTS","AMOUNT","RATE_DAILY","PERIOD"]
[419316182,1775152250135,-202.256276,0.00021918,2]
[419316183,1775152250147,-280.382243,0.00021918,2]
[419316184,1775152250159,-202.256276,0.00021918,2]
[419316185,1775152250172,-280.382243,0.00021918,2]
[419316186,1775152250184,-202.256276,0.00021918,2]
[419316187,1775152250196,-280.382243,0.00021918,2]
[419316188,1775152250208,-202.256276,0.00021918,2]
[419316189,1775152250220,-280.382243,0.00021918,2]
[419316190,1775152250232,-202.256284,0.00021918,2]
[419316191,1775152250245,-280.382243,0.00021918,2]
[419316192,1775152250257,-280.382243,0.00021918,2]
[419316193,1775152250269,-280.382243,0.00021918,2]
[419316194,1775152250281,-280.382243,0.00021918,2]
[419316195,1775152250294,-280.382243,0.00021918,2]
[419316196,1775152250305,-280.382243,0.00021918,2]
[419316197,1775152250317,-280.382243,0.00021918,2]
[419316198,1775152250329,-280.382248,0.00021918,2]
[419316199,1775152250341,-257.526982,0.00021918,2]
[419316200,1775152250353,-257.526982,0.00021918,2]
[419316201,1775152250365,-257.526982,0.00021918,2]
[419316202,1775152250377,-257.526982,0.00021918,2]
[419316203,1775152250389,-2265.348849,0.00021918,2]
[419316204,1775152250401,-257.526982,0.00021918,2]
[419316205,1775152250415,-2265.348849,0.00021918,2]
[419316206,1775152250427,-257.526982,0.00021918,2]
[419316207,1775152250439,-2265.348849,0.00021918,2]
[419316208,1775152250451,-257.526982,0.00021918,2]
[419316209,1775152250464,-2265.348849,0.00021918,2]
[419316210,1775152250475,-257.526982,0.00021918,2]
[419316211,1775152250489,-2265.348849,0.00021918,2]
[419316212,1775152250500,-257.526982,0.00021918,2]
[419316213,1775152250510,-2265.348849,0.00021918,2]
[419316214,1775152250520,-257.526982,0.00021918,2]
[419316215,1775152250530,-2265.348849,0.00021918,2]
[419316216,1775152250541,-257.526982,0.00021918,2]
[419316217,1775152250550,-2265.348849,0.00021918,2]
[419316218,1775152250559,-257.526982,0.00021918,2]
[419316219,1775152250569,-1871.93569093,0.00021918,2]
[419316220,1775152250725,-393.41315807,0.00021918,2]
[419316221,1775152250739,-257.526982,0.00021918,2]
[419316222,1775152250749,-2265.348849,0.00021918,2]
[419316223,1775152250759,-2265.348849,0.00021918,2]
[419316224,1775152250769,-257.526982,0.00021918,2]
[419316225,1775152250779,-2265.348849,0.00021918,2]
[419316226,1775152250788,-257.526982,0.00021918,2]
[419316227,1775152250798,-1120.27622311,0.00021918,2]
[419316261,1775153432769,-551.668,0.00012389,2]
[419316334,1775153441536,-4448.332,0.00012389,2]
[419316337,1775153441546,-595.0,0.00012389,2]
[419316339,1775153441556,-4242.4089765,0.00012514,2]
[419316341,1775153441566,-1000.0,0.00013699,2]
[419316343,1775153441576,-300.0,0.00013832,2]
[419316345,1775153441586,-300.0,0.00013832,2]
[419316347,1775153441595,-300.0,0.00013832,2]
[419316349,1775153441605,-300.0,0.00013832,2]
[419316351,1775153441615,-300.0,0.00013832,2]
[419316353,1775153441624,-300.0,0.00013832,2]
[419316355,1775153441634,-300.0,0.00013832,2]
[419316357,1775153441644,-300.0,0.00013832,2]
[419316359,1775153441654,-300.0,0.00013832,2]
[419316361,1775153441663,-292.6890235,0.00013832,2]
[419316663,1775153447304,-7.3109765,0.00013832,2]
[419316665,1775153447312,-300.0,0.00013832,2]
[419316667,1775153447321,-300.0,0.00013832,2]
[419316669,1775153447329,-300.0,0.00013832,2]
[419316670,1775153447338,-300.0,0.00013832,2]
[419316671,1775153447346,-300.0,0.00013832,2]
[419316672,1775153447354,-1382.7618041,0.00015974,2]
[419316673,1775153447362,-172.735,0.00017123,2]
[419316674,1775153447371,-1154.07643996,0.000172,2]
[419316675,1775153447379,-171.04702025,0.00017272,2]
[419316676,1775153447388,-6839.37165123,0.00017273,2]
[419316677,1775153447397,-500.0,0.00017371,2]
[419316678,1775153447405,-187.52181933,0.00017371,2]
[419316679,1775153447414,-500.0,0.00017371,2]
[419316680,1775153447423,-500.0,0.00017371,2]
[419316681,1775153447432,-500.0,0.00017371,2]
[419316682,1775153447441,-500.0,0.00017371,2]
[419316683,1775153447449,-428.07750815,0.00017371,2]
[419316684,1775153447459,-500.0,0.00017371,2]
[419316685,1775153447467,-197.80363511,0.00017371,2]
[419316686,1775153447475,-500.0,0.00017371,2]
[419316687,1775153447484,-500.0,0.00017371,2]
[419316688,1775153447493,-500.0,0.00017371,2]
[419316689,1775153447502,-420725.41211714,0.00017372,2]
[419316715,1775154631718,-344.18,0.00011901,2]
[419317229,1775154643180,-4655.82,0.00011901,2]
[419317231,1775154643191,-588.0,0.00011901,2]
[419317233,1775154643201,-5000.0,0.00012021,2]
[419317235,1775154643210,-2383.84902161,0.00012142,2]
[419317500,1775154646212,-2616.15097839,0.00012142,2]
[419317502,1775154646222,-156.0,0.00013699,2]
[419317504,1775154646231,-1000.0,0.00013699,2]
[419317506,1775154646240,-300.0,0.00013832,2]
[419317508,1775154646250,-300.0,0.00013832,2]
[419317510,1775154646259,-300.0,0.00013832,2]
[419317512,1775154646268,-300.0,0.00013832,2]
[419317514,1775154646278,-300.0,0.00013832,2]
[419317516,1775154646287,-300.0,0.00013832,2]
[419317518,1775154646296,-300.0,0.00013832,2]
[419317520,1775154646305,-42.67468065,0.00013832,2]
[419318035,1775154680905,-2886.29099962,0.00013557,2]
[419318036,1775154680918,-2113.70900038,0.00013557,2]
[419318037,1775154680928,-2886.29099962,0.00013694,2]
[419318245,1775155841854,-3686.12324199,0.00012011,2]
[419318247,1775155841866,-1313.87675801,0.00012011,2]
[419318249,1775155841876,-1356.11797688,0.00012132,2]
[419318251,1775155841885,-591.0,0.00012132,2]
[419318253,1775155841895,-244.0,0.00012255,2]
[419318255,1775155841905,-300.0,0.00013697,2]
[419318257,1775155841914,-292.0,0.00013697,2]
[419318259,1775155841924,-1000.0,0.00013699,2]
[419318262,1775155841934,-300.0,0.00013827,2]
[419318264,1775155841943,-300.0,0.00013827,2]
[419318266,1775155841953,-300.0,0.00013827,2]
[419318267,1775155841962,-300.0,0.00013827,2]
[419318269,1775155841972,-300.0,0.00013827,2]
[419318271,1775155841981,-300.0,0.00013827,2]
[419318274,1775155841991,-300.0,0.00013827,2]
[419318276,1775155842000,-300.0,0.00013827,2]
[419318277,1775155842010,-300.0,0.00013827,2]
[419318280,1775155842020,-300.0,0.00013827,2]
[419318282,1775155842030,-300.0,0.00013827,2]
[419318284,1775155842039,-300.0,0.00013827,2]
[419318286,1775155842049,-300.0,0.00013827,2]
[419318288,1775155842058,-300.0,0.00013827,2]
[419318290,1775155842067,-300.0,0.00013827,2]
[419318292,1775155842076,-1452.67240607,0.00014175,2]
[419318293,1775155842087,-8301.7076597,0.00014425,2]
[419318295,1775155842098,-3576.82956133,0.00014475,2]
[419318298,1775155842109,-3910.4768827,0.00014503,2]
[419318300,1775155842119,-629.015287,0.00016186,2]
[419318301,1775155842129,-502.63363251,0.00016573,2]
[419318304,1775155842140,-1042.35233776,0.00016573,2]
[419318306,1775155842150,-500.0,0.00016599,2]
[419318307,1775155842161,-500.0,0.00016599,2]
[419318310,1775155842171,-500.0,0.00016599,2]
[419318311,1775155842180,-500.0,0.00016599,2]
[419318313,1775155842189,-500.0,0.00016599,2]
[419318315,1775155842199,-349.65425571,0.00016599,2]
[419318317,1775155842208,-500.0,0.00016599,2]
[419318319,1775155842217,-500.0,0.00016599,2]
[419318321,1775155842226,-500.0,0.00016599,2]
[419318323,1775155842236,-276501.96440168,0.000166,2]
[419318326,1775155842249,-51455.00390185,0.000166,2]
[419318328,1775155842261,-1359.0,0.000166,2]
[419318378,1775155846146,-11055.94288572,0.000166,2]
[419318380,1775155846156,-13868.51585968,0.000166,2]
[419318406,1775155846407,-29205.1375522,0.000166,2]
[419318466,1775157038305,-5000.0,0.00011318,2]
[419318467,1775157038315,-5000.0,0.00011432,2]
[419318468,1775157038324,-581.0,0.00011432,2]
[419318469,1775157038334,-5000.0,0.00011547,2]
[419318470,1775157038343,-1000.0,0.00013699,2]
[419318471,1775157038354,-300.0,0.00013832,2]
[419318472,1775157038363,-300.0,0.00013832,2]
[419318473,1775157038372,-300.0,0.00013832,2]
[419318474,1775157038382,-300.0,0.00013832,2]
[419318475,1775157038392,-300.0,0.00013832,2]
[419318476,1775157038401,-300.0,0.00013832,2]
[419318477,1775157038411,-300.0,0.00013832,2]
[419318478,1775157038420,-300.0,0.00013832,2]
[419318479,1775157038430,-300.0,0.00013832,2]
[419318480,1775157038440,-300.0,0.00013832,2]
[419318481,1775157038449,-300.0,0.00013832,2]
[419318482,1775157038458,-300.0,0.00013832,2]
[419318483,1775157038468,-300.0,0.00013832,2]
[419318484,1775157038477,-300.0,0.00013832,2]
[419318485,1775157038486,-300.0,0.00013832,2]
[419318486,1775157038496,-600.0,0.00014108,2]
[419318487,1775157038505,-1000.0,0.00014111,2]
[419318488,1775157038516,-158.397364,0.00015068,2]
[419318489,1775157038526,-720.0,0.00015518,2]
[419318490,1775157038536,-1297.1721194,0.00016339,2]
[419318491,1775157038546,-913.9770998,0.00016339,2]
[419318492,1775157038557,-1601.611076,0.00016339,2]
[419318493,1775157038568,-1160.41432384,0.000164,2]
[419318494,1775157038578,-244.26351444,0.00016473,2]
[419318495,1775157038590,-894.76,0.000165,2]
[419318496,1775157038599,-894.76,0.000165,2]
[419318497,1775157038608,-894.76,0.000165,2]
[419318498,1775157038618,-894.76,0.000165,2]
[419318499,1775157038629,-894.76,0.000165,2]
[419318500,1775157038639,-894.76,0.000165,2]
[419318501,1775157038648,-894.76,0.000165,2]
[419318502,1775157038658,-894.76,0.000165,2]
[419318503,1775157038668,-894.76,0.000165,2]
[419318504,1775157038679,-894.76,0.000165,2]
[419318505,1775157038689,-268.52806702,0.000165,2]
[419318506,1775157038701,-626.23193298,0.000165,2]
[419318507,1775157038711,-894.76,0.000165,2]
[419318508,1775157038720,-894.76,0.000165,2]
[419318509,1775157038729,-894.76,0.000165,2]
[419318510,1775157038739,-894.76,0.000165,2]
[419318511,1775157038748,-1628.12,0.000165,2]
[419318512,1775157038758,-6369.85053378,0.00016799,2]
[419318513,1775157038768,-331994.72970859,0.000168,2]
[419318587,1775157046493,-1245.35456437,0.000164,2]
[419318594,1775157048830,-149.72407734,0.000164,2]
[419318595,1775157048840,-3786.59340033,0.000168,2]
[419318642,1775158232286,-567.76,0.00013027,2]
[419318647,1775158238537,-478.85715799,0.00013027,2]
[419318648,1775158238597,-916.09427073,0.00013027,2]
[419318969,1775158244416,-841.34677447,0.00013027,2]
[419318972,1775158244429,-2195.94179681,0.00013027,2]
[419318974,1775158244438,-605.0,0.00013027,2]
[419318976,1775158244447,-1000.0,0.00013699,2]
[419318978,1775158244456,-1229.198266,0.00014348,2]
[419318980,1775158244466,-314.09037224,0.00014541,2]
[419318982,1775158244475,-294.55151127,0.00014978,2]
[419318984,1775158244485,-1265.97696894,0.000165,2]
[419318986,1775158244494,-155.68979006,0.00016596,2]
[419318988,1775158244503,-280.24162211,0.00016596,2]
[419318990,1775158244514,-498.20732819,0.00016596,2]
[419318992,1775158244524,-500.0,0.00016599,2]
[419318994,1775158244535,-500.0,0.00016599,2]
[419318996,1775158244545,-500.0,0.00016599,2]
[419318998,1775158244554,-500.0,0.00016599,2]
[419319000,1775158244564,-500.0,0.00016599,2]
[419319002,1775158244574,-544.757979,0.00016599,2]
[419319004,1775158244583,-13814.82877189,0.000166,2]
[419319007,1775158244602,-92090.7476363,0.000166,2]
[419319177,1775158246759,-5000.0,0.00012897,2]
[419319178,1775158246768,-1555.0,0.000166,2]
[419319179,1775158246780,-10066.48484269,0.000166,2]
[419319349,1775159432531,-961.04889694,9.51e-05,2]
[419319350,1775159432546,-4038.95110306,9.51e-05,2]
[419319351,1775159432555,-157.91503129,9.606e-05,2]
[419319368,1775159438650,-397.08496871,9.606e-05,2]
[419319369,1775159438661,-208.28119975,0.0001,2]
[419319370,1775159438670,-695.5150762,0.0001,2]
[419319371,1775159438678,-379.89019538,0.0001,2]
[419319372,1775159438686,-249.54508032,0.0001,2]
[419319373,1775159438696,-150.5675449,0.0001,2]
[419319374,1775159438704,-214.70695761,0.0001,2]
[419319375,1775159438712,-300.0,0.00010171,21]
[419319376,1775159438721,-300.0,0.00010171,18]
[419319377,1775159438730,-695.5150762,0.00010518,2]
[419319378,1775159438737,-695.5150762,0.00011037,2]
[419319379,1775159438746,-249.54508032,0.00011074,2]
[419319380,1775159438754,-379.89019538,0.00011074,2]
[419319381,1775159438764,-219.92472103,0.000111,2]
[419319382,1775159438772,-695.5150762,0.00011555,7]
[419319383,1775159438781,-695.5150762,0.00012073,7]
[419319384,1775159438790,-208.28119975,0.00012147,7]
[419319385,1775159438799,-249.54508032,0.00012147,7]
[419319386,1775159438809,-214.70695761,0.00012147,7]
[419319387,1775159438819,-379.89019538,0.00012147,7]
[419319388,1775159438829,-150.5675449,0.00012505,7]
[419319389,1775159438838,-695.5150762,0.00012591,7]
[419319390,1775159438848,-160.4120554,0.00012724,2]
[419319391,1775159438858,-695.5150762,0.0001311,7]
[419319392,1775159438869,-249.54508032,0.00013221,7]
[419319393,1775159438880,-379.89019538,0.00013221,7]
[419319394,1775159438891,-695.5150762,0.00013628,7]
[419319395,1775159438901,-1000.0,0.00013699,2]
[419319396,1775159438911,-187.31693141,0.00013891,2]
[419319397,1775159438922,-695.5150762,0.00014146,7]
[419319398,1775159438932,-208.28119975,0.00014294,7]
[419319399,1775159438944,-214.70695761,0.00014294,7]
[419319400,1775159438955,-249.54508032,0.00014294,7]
[419319401,1775159438964,-379.89019538,0.00014294,7]
[419319402,1775159438973,-695.5150762,0.00014664,14]
[419319403,1775159438983,-150.5675449,0.0001501,14]
[419319404,1775159438992,-695.5150762,0.00015183,14]
[419319405,1775159439001,-249.54508032,0.00015368,14]
[419319406,1775159439010,-379.89019538,0.00015368,14]
[419319407,1775159439021,-695.5150762,0.00015701,14]
[419319408,1775159439032,-695.5150762,0.00016219,14]
[419319409,1775159439044,-191.78785238,0.00016269,7]
[419319410,1775159439056,-208.28119975,0.00016441,14]
[419319411,1775159439066,-214.70695761,0.00016441,14]
[419319412,1775159439076,-249.54508032,0.00016441,14]
[419319413,1775159439086,-379.89019538,0.00016441,14]
[419319414,1775159439095,-182139.83649005,0.00016541,2]
[419319415,1775159439107,-1195.35669466,0.00016541,2]
[419319416,1775159439118,-2923.86707462,0.00016541,2]
[419319417,1775159439130,-23982.22976876,0.00016541,2]
[419319589,1775159443843,-5000.0,9.51e-05,2]
[419319591,1775159443854,-5412.76468092,0.00016541,2]
[419319594,1775159443868,-4069.08184838,0.00016541,2]
[419319665,1775159446938,-623.8413812,0.00016541,2]
[419319667,1775159446950,-18026.19509804,0.00016541,2]
[419319738,1775160081385,-2113.70900038,0.00013292,2]
[419319741,1775160631607,-419.91550361,0.0001,2]
[419319742,1775160631617,-560.0,0.0001,2]
[419319743,1775160631627,-1797.48684111,0.0001,2]
[419319744,1775160631636,-5000.0,0.00012213,2]
[419319745,1775160631646,-300.0,0.00012336,2]
[419319746,1775160631656,-275.82242601,0.00012336,2]
[419319747,1775160631713,-24.17757399,0.00012336,2]
[419319748,1775160631723,-783.0,0.00012336,2]
[419319749,1775160631732,-1526.9266499,0.00012337,2]
[419319825,1775160640376,-3473.0733501,0.00012337,2]
[419319827,1775160640385,-167.607993,0.00012843,2]
[419319829,1775160640395,-187.28,0.000135,2]
[419319831,1775160640404,-1000.0,0.00013699,2]
[419319833,1775160640412,-240.33,0.000137,2]
[419319835,1775160640421,-196.63,0.000142,2]
[419319837,1775160640430,-210.672,0.00016112,2]
[419319839,1775160640440,-185.844,0.00016112,2]
[419319841,1775160640449,-3093.247367,0.00016185,2]
[419319843,1775160640458,-1000.0,0.00016245,5]
[419319845,1775160640466,-500.0,0.0001634,2]
[419319847,1775160640476,-185.43902666,0.0001634,2]
[419319849,1775160640485,-232.14349515,0.0001634,2]
[419319851,1775160640495,-500.0,0.0001634,2]
[419319853,1775160640504,-631.3305853,0.0001634,2]
[419319855,1775160640513,-500.0,0.0001634,2]
[419319856,1775160640522,-500.0,0.0001634,2]
[419319858,1775160640532,-500.0,0.0001634,2]
[419319860,1775160640540,-225.86529806,0.0001634,2]
[419319862,1775160640550,-500.0,0.0001634,2]
[419319864,1775160640559,-402.43031725,0.0001634,2]
[419319866,1775160640568,-500.0,0.0001634,2]
[419319868,1775160640577,-500.0,0.0001634,2]
[419319870,1775160640587,-1107.72984784,0.00016341,2]
[419319872,1775160640596,-271637.33149979,0.00016341,2]
[419319874,1775160640611,-356.09031662,0.00016341,2]
[419320032,1775160645929,-41335.24217011,0.00016341,2]
[419320033,1775160646138,-1817.22248727,0.00016341,2]
[419321282,1775161841139,-5000.0,0.00013027,2]
[419321284,1775161841149,-605.0,0.00013027,2]
[419321286,1775161841159,-1000.0,0.00013699,2]
[419321288,1775161841169,-1820.35320785,0.00014175,2]
[419321290,1775161841178,-1000.0,0.00014369,2]
[419321293,1775161841192,-4439.59883444,0.00014375,2]
[419321295,1775161841201,-161.78019819,0.00014443,2]
[419321297,1775161841211,-4463.66489659,0.00014475,2]
[419321299,1775161841220,-614.599133,0.00015419,2]
[419321301,1775161841230,-500.0,0.00015634,2]
[419321303,1775161841240,-224.83019779,0.00015714,2]
[419321305,1775161841250,-256.94879747,0.00015714,2]
[419321307,1775161841259,-401.08101356,0.00015714,2]
[419321309,1775161841268,-5000.0,0.0001577,2]
[419321311,1775161841277,-5000.0,0.0001577,2]
[419321313,1775161841287,-5000.0,0.0001577,2]
[419321315,1775161841296,-5000.0,0.0001577,2]
[419321317,1775161841305,-168.538,0.00015818,2]
[419321319,1775161841314,-233.11520173,0.00015899,2]
[419321321,1775161841326,-500.0,0.00015899,2]
[419321323,1775161841336,-184.03151297,0.00015899,2]
[419321325,1775161841346,-500.0,0.00015899,2]
[419321327,1775161841355,-491.93140971,0.00015899,2]
[419321329,1775161841364,-155.82559081,0.00015899,2]
[419321331,1775161841373,-404.83260078,0.00015899,2]
[419321333,1775161841382,-3046.34650063,0.000159,2]
[419321335,1775161841393,-923663.94204428,0.000159,2]
[419321337,1775161841402,-50000.0,0.00015999,2]
[419321339,1775161841411,-209.61,0.00016,2]
[419321341,1775161841420,-1173.59561893,0.00016,2]
[419321343,1775161841429,-194348.62101245,0.00016041,2]
[419321345,1775161841440,-1000.0,0.00016126,5]
[419321347,1775161841450,-500.0,0.00016131,2]
[419321349,1775161841460,-621.78829552,0.00016131,2]
[419321351,1775161841469,-151.0,0.00016131,2]
[419321353,1775161841478,-197.98104815,0.00016131,2]
[419321355,1775161841488,-151.0,0.00016131,2]
[419321357,1775161841497,-151.0,0.00016131,2]
[419321359,1775161841506,-151.0,0.00016131,2]
[419321361,1775161841515,-151.0,0.00016131,2]
[419321363,1775161841524,-151.0,0.00016131,2]
[419321365,1775161841534,-151.0,0.00016131,2]
[419321367,1775161841543,-151.0,0.00016131,2]
[419321369,1775161841553,-151.0,0.00016131,2]
[419321371,1775161841562,-229.80459918,0.00016131,2]
[419321373,1775161841573,-2487.15318209,0.00016131,2]
[419321375,1775161841582,-151.0,0.00016141,2]
[419321377,1775161841592,-151.0,0.00016141,2]
[419321380,1775161841603,-151.0,0.00016141,2]
[419321381,1775161841613,-151.0,0.00016141,2]
[419321383,1775161841622,-501.59752325,0.00016173,2]
[419321385,1775161841632,-151.0,0.000162,2]
[419321387,1775161841642,-151.0,0.000162,2]
[419321389,1775161841651,-151.0,0.000162,2]
[419321391,1775161841661,-151.0,0.000162,2]
[419321394,1775161841670,-779.5029865,0.00016235,2]
[419321396,1775161841680,-2965.960166,0.00016235,2]
[419321398,1775161841689,-151.0,0.00016241,2]
[419321400,1775161841699,-680.06,0.00016341,2]
[419321402,1775161841709,-680.06,0.00016341,2]
[419321403,1775161841718,-680.06,0.00016341,2]
[419321404,1775161841728,-680.06,0.00016341,2]
[419321405,1775161841737,-680.06,0.00016341,2]
[419321406,1775161841747,-680.06,0.00016341,2]
[419321407,1775161841757,-680.06,0.00016341,2]
[419321408,1775161841767,-680.06,0.00016341,2]
[419321409,1775161841776,-680.06,0.00016341,2]
[419321410,1775161841786,-680.06,0.00016341,2]
[419321411,1775161841796,-680.06,0.00016341,2]
[419321412,1775161841805,-1251.88,0.00016341,2]
[419321413,1775161841814,-154.010127,0.00016438,2]
[419321414,1775161841824,-364.80525835,0.00016541,2]
[419321415,1775161841834,-500.0,0.00016541,2]
[419321416,1775161841843,-500.0,0.00016679,2]
[419321417,1775161841852,-236.33871168,0.00016679,2]
[419321438,1775161843422,-408.45575078,0.00016679,2]
[419321439,1775161843433,-2579.17784983,0.00016679,2]
[419321440,1775161843443,-695.5150762,0.00016738,14]
[419321441,1775161843453,-196.2501007,0.00016742,2]
[419321442,1775161843463,-600.0,0.00016769,2]
[419321443,1775161843472,-250.0,0.00016795,4]
[419321444,1775161843482,-297.0,0.00016831,2]
[419321445,1775161843492,-321.84931778,0.00016854,2]
[419321446,1775161843503,-500.0,0.00016873,2]
[419321447,1775161843513,-500.0,0.00016873,2]
[419321448,1775161843523,-500.0,0.00016873,2]
[419321449,1775161843533,-44365.72190471,0.000169,2]
[419321450,1775161843545,-55810.85729102,0.000169,2]
[419321451,1775161843555,-151.0,0.000169,2]
[419321452,1775161843565,-151.0,0.000169,2]
[419321453,1775161843575,-151.0,0.000169,2]
[419321454,1775161843585,-151.0,0.000169,2]
[419321455,1775161843595,-151.0,0.000169,2]
[419321456,1775161843605,-151.0,0.000169,2]
[419321457,1775161843615,-370.0,0.00017014,2]
[419321458,1775161843625,-788.0,0.000171,2]
[419321459,1775161843635,-437.0,0.00017216,2]
[419321460,1775161843645,-500.0,0.00017227,2]
[419321461,1775161843655,-412.98924021,0.00017227,2]
[419321462,1775161843665,-2674.60743027,0.00017227,2]
[419321463,1775161843675,-695.5150762,0.00017256,14]
[419321464,1775161843685,-416.92029525,0.00017268,2]
[419321465,1775161843694,-1405.0,0.00017374,2]
[419321466,1775161843705,-643.0,0.00017374,2]
[419321467,1775161843715,-2203.0,0.00017374,2]
[419321468,1775161843725,-737.0,0.00017374,2]
[419321469,1775161843735,-184.0,0.00017374,2]
[419321470,1775161843745,-440.0,0.00017374,2]
[419321471,1775161843755,-1000.0,0.00017421,2]
[419321472,1775161843765,-504.96443852,0.00017507,2]
[419321473,1775161843774,-521.08804885,0.00017507,2]
[419321474,1775161843784,-150.5675449,0.00017515,14]
[419321475,1775161843795,-249.54508032,0.00017515,14]
[419321476,1775161843804,-379.89019538,0.00017515,14]
[419321477,1775161843814,-150.865,0.00017617,2]
[419321478,1775161843824,-150.505,0.00017617,2]
[419321479,1775161843834,-150.776,0.00017617,2]
[419321480,1775161843844,-268.497,0.00017617,2]
[419321481,1775161843854,-150.331,0.00017617,2]
[419321482,1775161843865,-196.2501007,0.00017624,2]
[419321483,1775161843875,-500.0,0.00017671,2]
[419321484,1775161843885,-695.5150762,0.00017774,30]
[419321485,1775161843895,-500.0,0.00017775,2]
[419321486,1775161843905,-2773.56790519,0.00017775,2]
[419321487,1775161843914,-3046.34650059,0.000179,2]
[419321488,1775161843924,-154.0,0.00017919,2]
[419321489,1775161843934,-200.0,0.00017919,2]
[419321490,1775161843944,-169.90605802,0.00017922,3]
[419321491,1775161843954,-1500.0,0.00017968,2]
[419321492,1775161843965,-160.24072939,0.00018,5]
[419321493,1775161843975,-6918.09891682,0.00018,2]
[419321494,1775161843984,-600.53066832,0.00018,15]
[419321495,1775161843995,-171.07172761,0.00018219,2]
[419321496,1775161844005,-695.5150762,0.00018292,30]
[419321497,1775161844015,-500.0,0.00018323,2]
[419321498,1775161844025,-2876.18991768,0.00018323,2]
[419321499,1775161844034,-196.2713616,0.00018361,2]
[419321500,1775161844046,-720.0,0.00018446,2]
[419321501,1775161844056,-151.0,0.00018446,2]
[419321502,1775161844162,-2043.89999902,0.0001847,2]
[419321504,1775161844172,-151.0,0.000185,2]
[419321505,1775161844182,-151.0,0.000185,2]
[419321506,1775161844192,-151.0,0.000185,2]
[419321508,1775161844202,-151.0,0.000185,2]
[419321509,1775161844212,-151.0,0.00018516,2]
[419321510,1775161844223,-1007.94007205,0.00018516,2]
[419321512,1775161844233,-455.2608298,0.00018522,2]
[419321513,1775161844243,-208.28119975,0.00018589,30]
[419321515,1775161844253,-214.70695761,0.00018589,30]
[419321517,1775161844263,-249.54508032,0.00018589,30]
[419321518,1775161844273,-379.89019538,0.00018589,30]
[419321520,1775161844283,-154.0037181,0.00018699,2]
[419321521,1775161844293,-695.5150762,0.00018811,30]
[419321522,1775161844303,-3155.7,0.00018854,2]
[419321523,1775161844313,-500.0,0.00018871,2]
[419321524,1775161844323,-2982.60894464,0.00018871,2]
[419321525,1775161844333,-154.0,0.00018919,2]
[419321526,1775161844342,-200.0,0.00018919,2]
[419321527,1775161844352,-9681.30088007,0.00019,2]
[419321528,1775161844361,-1000.0,0.00019,2]
[419321529,1775161844371,-250.26068351,0.00019016,2]
[419321530,1775161844381,-363.77055796,0.00019016,2]
[419321531,1775161844390,-352.04801424,0.00019019,2]
[419321532,1775161844400,-332.810758,0.00019022,2]
[419321533,1775161844410,-322.81032636,0.00019029,2]
[419321534,1775161844420,-169.55810193,0.00019038,2]
[419321535,1775161844429,-304.6265673,0.0001905,2]
[419321536,1775161844438,-431.6599,0.0001909,2]
[419321537,1775161844448,-160.0,0.0001909,7]
[419321538,1775161844458,-833.737311,0.0001909,7]
[419321539,1775161844467,-1507.474622,0.0001909,7]
[419321540,1775161844477,-287.417795,0.0001909,2]
[419321541,1775161844487,-174.99,0.00019178,2]
[419321542,1775161844497,-200.0,0.00019178,2]
[419321543,1775161844507,-200.0,0.00019178,2]
[419321544,1775161844516,-187.465,0.00019178,2]
[419321545,1775161844524,-378.205,0.00019178,2]
[419321546,1775161844534,-508.84,0.00019178,2]
[419321547,1775161844543,-200.0,0.00019178,2]